[Event "Prague Festival Future 2020"]
[Site "Prague"]
[Date "2020.02.19"]
[Round "7.4"]
[White "Kanov, Nikola"]
[Black "Aydin, Gulenay"]
[Result "1/2-1/2"]
[ECO "B71"]
[WhiteElo "2129"]
[BlackElo "1964"]
[Annotator "ChessBase"]
[PlyCount "162"]
[EventDate "2020.02.12"]
[EventType "tourn"]
[EventCountry "CZE"]
[SourceTitle "playchess.com"]
[Source "ChessBase"]
[SourceQuality "1"]
[TimeControl "40/5400+30:1800+30"]

1. e4 {[%emt 0:00:00]} c5 {[%emt 0:00:00]} 2. Nf3 {[%emt 0:00:00]} d6 {[%emt 0:00:00]} 3. d4 {[%emt 0:00:00]} cxd4 {[%emt 0:00:00]} 4. Nxd4 {[%emt 0:00:06]} Nf6 {[%emt 0:00:00]} 5. Nc3 {[%emt 0:00:10]} g6 {[%emt 0:00:04]} 6. f4 {[%emt 0:00:23]} Nc6 {[%emt 0:02:00]} 7. Nxc6 {[%emt 0:00:35]} bxc6 {[%emt 0:00:04]} 8. e5 {[%emt 0:00:23]} Nd7 {[%emt 0:06:39]} 9. exd6 {[%emt 0:00:38]} exd6 {[%emt 0:00:06]} 10. Be3 {[%emt 0:00:30]} Be7 {[%emt 0:05:27]} 11. Qd2 {[%emt 0:01:07]} O-O {[%emt 0:01:00]} 12. Be2 {[%emt 0:00:44]} Re8 {[%emt 0:05:04]} 13. O-O {[%emt 0:04:09]} Bf8 {[%emt 0:03:42]} 14. Bf3 {[%emt 0:07:13]} d5 {[%emt 0:07:05]} 15. Kh1 {[%emt 0:06:04]} a5 {[%emt 0:04:11]} 16. Qf2 {[%emt 0:26:02]} Rb8 {[%emt 0:02:52]} 17. Na4 {[%emt 0:02:49]} Ba6 {[%emt 0:03:36]} 18. Rfe1 {[%emt 0:02:57]} Qc7 {[%emt 0:05:39]} 19. g3 {[%emt 0:09:10]} Bb5 {[%emt 0:10:05]} 20. Nc3 {[%emt 0:01:43]} Ba6 {[%emt 0:03:25]} 21. Bd4 {[%emt 0:05:32]} Bb7 {[%emt 0:05:43]} 22. Be3 {[%emt 0:21:55]} Ba8 {[%emt 0:13:28]} 23. Rab1 {[%emt 0:01:40]} Qd6 {[%emt 0:03:04]} 24. Ne2 {[%emt 0:02:40]} Nf6 {[%emt 0:02:06]} 25. f5 {[%emt 0:00:53]} Qd7 {[%emt 0:03:58]} 26. fxg6 {[%emt 0:01:04]} hxg6 {[%emt 0:00:11]} 27. Bd4 {[%emt 0:01:02]} Bg7 {[%emt 0:02:42]} 28. Nf4 {[%emt 0:00:43]} c5 {[%emt 0:06:51]} 29. Bxf6 {[%emt 0:01:17]} Bxf6 {[%emt 0:00:06]} 30. Rxe8+ {[%emt 0:00:23]} Rxe8 {[%emt 0:02:28]} 31. Qxc5 {[%emt 0:00:39]} d4 {[%emt 0:00:57]} 32. Bxa8 {[%emt 0:00:51]} Rxa8 {[%emt 0:00:02]} 33. Qd5 {[%emt 0:01:22]} Qe8 {[%emt 0:00:30]} 34. Rf1 {[%emt 0:00:24]} Kg7 {[%emt 0:01:05]} 35. Qf3 {[%emt 0:00:33]} Ra7 {[%emt 0:01:56]} 36. Nh5+ {[%emt 0:01:12]} gxh5 {[%emt 0:00:12]} 37. Qxf6+ {[%emt 0:00:01]} Kh7 {[%emt 0:01:34]} 38. Qf5+ {[%emt 0:00:51]} Kh6 {[%emt 0:00:30]} 39. Qf4+ {[%emt 0:00:51]} Kh7 {[%emt 0:00:08]} 40. Qxd4 {[%emt 0:00:00]} Rd7 {[%emt 0:00:00]} 41. Qf4 {[%emt 0:02:05]} Qe7 {[%emt 0:09:11]} 42. Qf5+ {[%emt 0:01:58]} Kg8 {[%emt 0:00:11]} 43. Rf2 {[%emt 0:09:28]} Rd2 {[%emt 0:14:23]} 44. Rxd2 {[%emt 0:08:26]} Qe1+ {[%emt 0:00:03]} 45. Kg2 {[%emt 0:00:05]} Qxd2+ {[%emt 0:00:04]} 46. Kh3 {[%emt 0:00:04]} a4 {[%emt 0:02:22]} 47. a3 {[%emt 0:02:05]} Qc1 {[%emt 0:01:01]} 48. Qc8+ {[%emt 0:00:58]} Kg7 {[%emt 0:01:39]} 49. Qc3+ {[%emt 0:00:06]} Kg8 {[%emt 0:00:23]} 50. Kh4 {[%emt 0:04:59]} Qd1 {[%emt 0:02:54]} 51. Qc8+ {[%emt 0:02:10]} Kg7 {[%emt 0:00:40]} 52. Qf5 {[%emt 0:01:47]} f6 {[%emt 0:01:01]} 53. Kh3 {[%emt 0:01:29]} Qd4 {[%emt 0:01:25]} 54. Qxh5 {[%emt 0:00:37]} Qxb2 {[%emt 0:00:09]} 55. Qg4+ {[%emt 0:00:00]} Kf7 {[%emt 0:01:18]} 56. Qxa4 {[%emt 0:00:12]} Qc1 {[%emt 0:00:03]} 57. Qb3+ {[%emt 0:00:07]} Kg7 {[%emt 0:01:16]} 58. Qd3 Qh6+ {[%emt 0:01:00]} 59. Kg2 {[%emt 0:00:13]} Qc1 {[%emt 0:00:06]} 60. a4 {[%emt 0:01:18]} Qb1 {[%emt 0:00:50]} 61. Qe4 {[%emt 0:03:00]} Qc1 {[%emt 0:00:23]} 62. Qg4+ {[%emt 0:00:35]} Kf7 {[%emt 0:00:45]} 63. Qc4+ {[%emt 0:00:14]} Kg7 {[%emt 0:00:51]} 64. Kh3 {[%emt 0:00:34]} Qd2 {[%emt 0:00:40]} 65. Qc7+ {[%emt 0:00:41]} Kg6 {[%emt 0:00:07]} 66. Qc4 {[%emt 0:00:20]} Kg7 {[%emt 0:00:32]} 67. Qd3 {[%emt 0:00:14]} Qa5 {[%emt 0:00:51]} 68. Qd7+ {[%emt 0:00:28]} Kh6 {[%emt 0:00:43]} 69. Qe6 {[%emt 0:00:47]} Kg7 {[%emt 0:00:28]} 70. Qg4+ {[%emt 0:00:13]} Kh6 {[%emt 0:00:33]} 71. Kh4 {[%emt 0:00:33]} Qc3 {[%emt 0:00:19]} 72. Qf4+ {[%emt 0:00:33]} Kg7 {[%emt 0:00:31]} 73. Qf5 {[%emt 0:00:20]} Qd2 {[%emt 0:00:36]} 74. h3 {[%emt 0:01:01]} Qh6+ {[%emt 0:00:15]} 75. Qh5 {[%emt 0:00:37]} Qd2 {[%emt 0:00:17]} 76. a5 {[%emt 0:00:20]} Qxc2 {[%emt 0:00:32]} 77. a6 {[%emt 0:00:05]} Kf8 {[%emt 0:00:47]} 78. Qh8+ {[%emt 0:01:02]} Kf7 {[%emt 0:00:22]} 79. a7 {[%emt 0:00:33]} Qe4+ {[%emt 0:00:23]} 80. g4 {[%emt 0:00:28]} Qe1+ {[%emt 0:00:07]} 81. Kh5 {[%emt 0:00:29]} Qe5+ {[%emt 0:00:05]} 1/2-1/2

[Event "Prague Festival Future 2020"]
[Site "Prague"]
[Date "2020.02.19"]
[Round "7.5"]
[White "Chinguun Bayaraa"]
[Black "Klimkowski, Jan"]
[Result "1/2-1/2"]
[ECO "E98"]
[WhiteElo "2049"]
[BlackElo "2229"]
[Annotator "NA"]
[PlyCount "116"]
[EventDate "2020.02.12"]
[EventType "tourn"]
[EventCountry "CZE"]
[SourceTitle "playchess.com"]
[Source "ChessBase"]
[SourceQuality "1"]
[TimeControl "40/5400+30:1800+30"]

1. Nf3 {[%emt 0:00:00]} Nf6 {[%emt 0:00:00]} 2. d4 {[%emt 0:00:19]} g6 {[%emt 0:00:00]} 3. c4 {[%emt 0:00:04]} Bg7 {[%emt 0:00:00]} 4. Nc3 {[%emt 0:00:06]} O-O {[%emt 0:00:00]} 5. e4 {[%emt 0:00:08]} d6 {[%emt 0:00:26]} 6. Be2 {[%emt 0:00:05]} e5 {[%emt 0:00:05]} 7. O-O {[%emt 0:00:12]} Nc6 {[%emt 0:00:00]} 8. d5 {[%emt 0:00:25]} Ne7 {[%emt 0:00:00]} 9. Ne1 {[%emt 0:00:07]} Ne8 {[%emt 0:00:00]} 10. Nd3 {[%emt 0:00:39]} f5 {[%emt 0:00:00]} 11. f3 {[%emt 0:00:37]} Nf6 {[%emt 0:00:05]} 12. Bd2 {[%emt 0:00:52]} f4 {[%emt 0:00:54]} 13. Rc1 {[%emt 0:02:30]} g5 {[%emt 0:00:52]} 14. c5 {[%emt 0:00:07]} Ng6 {[%emt 0:01:33]} 15. cxd6 {[%emt 0:00:43]} cxd6 {[%emt 0:00:07]} 16. Nf2 {[%emt 0:00:36]} Rf7 {[%emt 0:03:20]} 17. Qb3 {[%emt 0:00:54]} Bf8 {[%emt 0:00:50]} 18. Nb5 {[%emt 0:00:08]} h5 {[%emt 0:03:02]} 19. h3 {[%emt 0:00:42]} Rh7 {[%emt 0:03:10]} 20. Qc2 {[%emt 0:16:09]} Bd7 {[%emt 0:13:39]} 21. Qb3 {[%emt 0:12:39]} g4 {[%emt 0:07:54]} 22. fxg4 {[%emt 0:05:01]} hxg4 {[%emt 0:00:13]} 23. hxg4 {[%emt 0:00:27]} Ne8 {[%emt 0:12:02]} 24. Rc3 {[%emt 0:02:11]} Bh6 {[%emt 0:02:56]} 25. Be1 {[%emt 0:03:37]} a6 {[%emt 0:01:20]} 26. Na3 {[%emt 0:00:39]} b5 {[%emt 0:00:20]} 27. Bf3 {[%emt 0:24:07]} Nf6 {[%emt 0:09:44]} 28. Rc2 {[%emt 0:02:09]} Bf8 {[%emt 0:06:00]} 29. Rc1 {[%emt 0:07:33]} Qb6 {[%emt 0:03:15]} 30. Nc4 {[%emt 0:03:34]} Qa7 {[%emt 0:01:13]} 31. Na5 {[%emt 0:00:23]} Bxg4 {[%emt 0:01:49]} 32. Nc6 {[%emt 0:01:30]} Qd7 {[%emt 0:00:14]} 33. Nxg4 {[%emt 0:03:28]} Nxg4 {[%emt 0:00:11]} 34. Bxg4 {[%emt 0:00:04]} Qxg4 {[%emt 0:00:15]} 35. Rf3 {[%emt 0:00:43]} Bh6 {[%emt 0:04:25]} 36. Rcc3 {[%emt 0:08:28]} Rg7 {[%emt 0:01:19]} 37. Qc2 {[%emt 0:00:58]} Kh7 {[%emt 0:01:25]} 38. Rh3 {[%emt 0:01:01]} Rag8 {[%emt 0:02:08]} 39. Rh2 {[%emt 0:02:08]} f3 {[%emt 0:03:16]} 40. Rxf3 {[%emt 0:00:00]} Qxf3 {[%emt 0:00:00]} 41. gxf3 {[%emt 0:05:28]} Nf4+ {[%emt 0:07:25]} 42. Kf2 {[%emt 0:01:06]} Rg2+ {[%emt 0:00:13]} 43. Ke3 {[%emt 0:00:09]} Nxd5+ {[%emt 0:04:52]} 44. Kd3 {[%emt 0:00:27]} Nf4+ {[%emt 0:00:46]} 45. Kc3 {[%emt 0:00:43]} Rxc2+ {[%emt 0:00:04]} 46. Rxc2 {[%emt 0:00:05]} Rc8 {[%emt 0:00:04]} 47. Kb3 {[%emt 0:01:22]} Ne6 {[%emt 0:01:03]} 48. Bf2 {[%emt 0:04:33]} Ng5 {[%emt 0:02:30]} 49. Ne7 {[%emt 0:06:08]} Rxc2 {[%emt 0:00:47]} 50. Kxc2 {[%emt 0:00:13]} Nxf3 {[%emt 0:00:17]} 51. Nd5 {[%emt 0:00:49]} Ng5 {[%emt 0:01:40]} 52. Kd3 {[%emt 0:00:33]} Ne6 {[%emt 0:00:17]} 53. Nb4 {[%emt 0:00:42]} a5 {[%emt 0:03:06]} 54. Nc6 {[%emt 0:00:32]} Nf4+ {[%emt 0:03:03]} 55. Kc2 {[%emt 0:03:59]} a4 {[%emt 0:01:10]} 56. a3 {[%emt 0:01:23]} d5 {[%emt 0:02:28]} 57. exd5 {[%emt 0:01:22]} Nxd5 {[%emt 0:00:03]} 58. Nxe5 {[%emt 0:00:07]} b4 {[%emt 0:00:05]} 1/2-1/2

[Event "Prague Festival Future 2020"]
[Site "Prague"]
[Date "2020.02.20"]
[Round "8.3"]
[White "Gurel, Ediz"]
[Black "Kanov, Nikola"]
[Result "1-0"]
[ECO "C70"]
[WhiteElo "2125"]
[BlackElo "2129"]
[Annotator "NA"]
[PlyCount "49"]
[EventDate "2020.02.12"]
[EventType "tourn"]
[EventCountry "CZE"]
[SourceTitle "playchess.com"]
[Source "ChessBase"]
[SourceQuality "1"]
[TimeControl "40/5400+30:1800+30"]

1. e4 {[%emt 0:00:00]} e5 {[%emt 0:00:00]} 2. Nf3 {[%emt 0:00:12]} Nc6 {[%emt 0:00:01]} 3. Bb5 {[%emt 0:00:17]} a6 {[%emt 0:00:21]} 4. Ba4 {[%emt 0:00:08]} Nge7 {[%emt 0:00:23]} 5. O-O {[%emt 0:00:37]} g6 {[%emt 0:00:32]} 6. c3 {[%emt 0:00:51]} Bg7 {[%emt 0:00:36]} 7. d4 {[%emt 0:00:52]} exd4 {[%emt 0:00:42]} 8. cxd4 {[%emt 0:00:58]} O-O {[%emt 0:02:36]} 9. d5 {[%emt 0:02:23]} Ne5 {[%emt 0:01:41]} 10. Nxe5 {[%emt 0:02:01]} Bxe5 {[%emt 0:00:03]} 11. f4 {[%emt 0:01:53]} Bg7 {[%emt 0:01:44]} 12. f5 {[%emt 0:03:39]} f6 {[%emt 0:09:36]} 13. d6 {[%emt 0:01:33]} Nc6 {[%emt 0:03:37]} 14. fxg6 {[%emt 0:00:55]} Ne5 {[%emt 0:13:18]} 15. Bb3+ {[%emt 0:02:25]} Kh8 {[%emt 0:00:16]} 16. Qh5 {[%emt 0:00:31]} Nxg6 {[%emt 0:00:49]} 17. Rf3 {[%emt 0:00:08]} Re8 {[%emt 0:00:47]} 18. Rh3 {[%emt 0:03:57]} Nf8 {[%emt 0:00:24]} 19. Bh6 {[%emt 0:05:43]} Bxh6 {[%emt 0:04:04]} 20. Qxh6 {[%emt 0:00:17]} Re5 {[%emt 0:00:45]} 21. Rg3 {[%emt 0:02:53]} Rg5 {[%emt 0:00:35]} 22. Rxg5 {[%emt 0:00:02]} fxg5 {[%emt 0:00:06]} 23. Nc3 {[%emt 0:00:08]} Ne6 {[%emt 0:29:53]} 24. Rf1 {[%emt 0:00:37]} Kg8 {[%emt 0:00:11]} 25. Nd5 {[%emt 0:00:14]} 1-0

[Event "Prague Festival Future 2020"]
[Site "Prague"]
[Date "2020.02.21"]
[Round "9.1"]
[White "Nemec, Jachym"]
[Black "Nadzamova, Viktoria"]
[Result "1/2-1/2"]
[ECO "B41"]
[WhiteElo "2069"]
[BlackElo "1960"]
[Annotator "NA"]
[PlyCount "73"]
[EventDate "2020.02.12"]
[EventType "tourn"]
[EventCountry "CZE"]
[SourceTitle "playchess.com"]
[Source "ChessBase"]
[SourceQuality "1"]
[TimeControl "40/5400+30:1800+30"]

1. e4 {[%emt 0:00:00]} c5 {[%emt 0:00:00]} 2. Nf3 {[%emt 0:00:00]} e6 {[%emt 0:00:00]} 3. d4 {[%emt 0:00:00]} cxd4 {[%emt 0:00:00]} 4. Nxd4 {[%emt 0:00:03]} a6 {[%emt 0:00:00]} 5. c4 {[%emt 0:00:16]} Nf6 {[%emt 0:00:12]} 6. Nc3 {[%emt 0:00:07]} d6 {[%emt 0:00:19]} 7. Be3 {[%emt 0:00:31]} Be7 {[%emt 0:00:28]} 8. Be2 {[%emt 0:00:13]} O-O {[%emt 0:00:29]} 9. O-O {[%emt 0:00:06]} b6 {[%emt 0:00:13]} 10. f3 {[%emt 0:00:15]} Bb7 {[%emt 0:00:55]} 11. Qd2 {[%emt 0:00:13]} Nbd7 {[%emt 0:00:42]} 12. Rac1 {[%emt 0:00:56]} Rc8 {[%emt 0:00:35]} 13. a3 {[%emt 0:00:37]} Ne5 {[%emt 0:02:46]} 14. Na4 {[%emt 0:02:40]} d5 {[%emt 0:02:28]} 15. exd5 {[%emt 0:27:59]} exd5 {[%emt 0:01:20]} 16. Nf5 {[%emt 0:00:26]} Nxc4 {[%emt 0:10:51]} 17. Bxc4 {[%emt 0:00:20]} dxc4 {[%emt 0:00:56]} 18. Qf2 {[%emt 0:02:10]} Nd5 {[%emt 0:14:45]} 19. Bxb6 {[%emt 0:12:46]} Qd7 {[%emt 0:07:10]} 20. Nxe7+ {[%emt 0:04:39]} Nxe7 {[%emt 0:00:22]} 21. Nc5 {[%emt 0:00:38]} Qc6 {[%emt 0:01:31]} 22. Ne4 {[%emt 0:01:11]} Qg6 {[%emt 0:02:05]} 23. Nc3 {[%emt 0:02:14]} Bxf3 {[%emt 0:01:54]} 24. Bd4 {[%emt 0:03:31]} Ba8 {[%emt 0:02:09]} 25. Rce1 {[%emt 0:00:48]} Nf5 {[%emt 0:00:23]} 26. Re2 {[%emt 0:01:48]} Nxd4 {[%emt 0:00:28]} 27. Qxd4 {[%emt 0:00:04]} Rfd8 {[%emt 0:01:31]} 28. Qa7 {[%emt 0:01:38]} Re8 {[%emt 0:01:26]} 29. Ref2 {[%emt 0:00:26]} f5 {[%emt 0:04:10]} 30. Qd7 {[%emt 0:05:09]} Rf8 {[%emt 0:04:17]} 31. Nd5 {[%emt 0:00:36]} Bxd5 {[%emt 0:04:11]} 32. Qxd5+ {[%emt 0:00:06]} Qf7 {[%emt 0:00:24]} 33. Qxf7+ {[%emt 0:00:35]} Rxf7 {[%emt 0:00:06]} 34. Rxf5 {[%emt 0:00:06]} Rxf5 {[%emt 0:00:07]} 35. Rxf5 {[%emt 0:00:02]} c3 {[%emt 0:00:07]} 36. bxc3 {[%emt 0:00:04]} Rxc3 {[%emt 0:00:06]} 37. Ra5 {[%emt 0:00:13]} 1/2-1/2

[Event "Prague Festival Future 2020"]
[Site "Prague"]
[Date "2020.02.21"]
[Round "9.2"]
[White "Finek, Vaclav"]
[Black "Vagman, Roy"]
[Result "1-0"]
[ECO "D26"]
[WhiteElo "2220"]
[BlackElo "2141"]
[Annotator "ChessBase"]
[PlyCount "113"]
[EventDate "2020.02.12"]
[EventType "tourn"]
[EventCountry "CZE"]
[SourceTitle "playchess.com"]
[Source "ChessBase"]
[SourceQuality "1"]
[TimeControl "40/5400+30:1800+30"]

1. d4 {[%emt 0:00:00]} d5 {[%emt 0:00:00]} 2. Nf3 {[%emt 0:00:00]} Nf6 {[%emt 0:00:12]} 3. c4 {[%emt 0:00:00]} dxc4 {[%emt 0:00:30]} 4. e3 {[%emt 0:00:00]} e6 {[%emt 0:00:22]} 5. Bxc4 {[%emt 0:00:09]} c5 {[%emt 0:00:35]} 6. O-O {[%emt 0:00:06]} Nc6 {[%emt 0:00:42]} 7. dxc5 {[%emt 0:00:07]} Qxd1 {[%emt 0:01:35]} 8. Rxd1 {[%emt 0:00:02]} Bxc5 {[%emt 0:00:11]} 9. a3 {[%emt 0:00:28]} O-O {[%emt 0:01:49]} 10. b4 {[%emt 0:00:08]} Be7 {[%emt 0:00:25]} 11. Bb2 {[%emt 0:00:15]} Bd7 {[%emt 0:01:06]} 12. Nbd2 {[%emt 0:01:10]} Rfd8 {[%emt 0:03:19]} 13. Nb3 {[%emt 0:02:11]} a6 {[%emt 0:11:47]} 14. Rac1 {[%emt 0:03:06]} Rac8 {[%emt 0:01:16]} 15. Kf1 {[%emt 0:06:48]} Be8 {[%emt 0:22:30]} 16. Rxd8 {[%emt 0:03:18]} Rxd8 {[%emt 0:00:32]} 17. Ke2 {[%emt 0:04:27]} Ne4 {[%emt 0:08:39]} 18. h3 {[%emt 0:05:42]} Kf8 {[%emt 0:20:40]} 19. Bd3 {[%emt 0:05:18]} Nf6 {[%emt 0:00:17]} 20. Nc5 {[%emt 0:03:31]} Rb8 {[%emt 0:11:38]} 21. Ne5 {[%emt 0:03:19]} Bxc5 {[%emt 0:00:47]} 22. Rxc5 {[%emt 0:00:47]} Ne7 {[%emt 0:03:23]} 23. g4 {[%emt 0:03:33]} h6 {[%emt 0:03:46]} 24. h4 {[%emt 0:01:36]} Nd7 {[%emt 0:01:20]} 25. Rc7 {[%emt 0:02:01]} Nb6 {[%emt 0:01:19]} 26. g5 {[%emt 0:09:35]} hxg5 {[%emt 0:00:58]} 27. hxg5 {[%emt 0:00:16]} Nc6 {[%emt 0:01:59]} 28. Nxc6 {[%emt 0:02:07]} Bxc6 {[%emt 0:00:01]} 29. g6 {[%emt 0:01:38]} f6 {[%emt 0:01:14]} 30. e4 {[%emt 0:16:39]} e5 {[%emt 0:00:50]} 31. Bc1 {[%emt 0:06:25]} Rc8 {[%emt 0:01:14]} 32. Rf7+ {[%emt 0:01:20]} Kg8 {[%emt 0:00:00]} 33. Be3 {[%emt 0:00:15]} Nd7 {[%emt 0:01:02]} 34. Bc4 {[%emt 0:02:23]} Kh8 {[%emt 0:00:00]} 35. Be6 {[%emt 0:00:30]} Rd8 {[%emt 0:00:50]} 36. Bh6 {[%emt 0:00:21]} Rg8 {[%emt 0:00:39]} 37. Bxd7 {[%emt 0:01:09]} Bxe4 {[%emt 0:00:02]} 38. Be3 {[%emt 0:00:42]} Bxg6 {[%emt 0:00:02]} 39. Re7 {[%emt 0:00:05]} Kh7 {[%emt 0:01:01]} 40. Be6 {[%emt 0:00:00]} Rd8 {[%emt 0:00:00]} 41. Rxb7 {[%emt 0:03:09]} Rd3 {[%emt 0:01:14]} 42. a4 {[%emt 0:01:09]} Ra3 {[%emt 0:00:55]} 43. a5 {[%emt 0:01:36]} Bd3+ {[%emt 0:00:30]} 44. Kd2 {[%emt 0:01:03]} Kg6 {[%emt 0:01:10]} 45. Rb6 {[%emt 0:01:38]} Bb5 {[%emt 0:00:34]} 46. Rxb5 {[%emt 0:03:38]} axb5 {[%emt 0:00:05]} 47. Bc8 {[%emt 0:00:26]} f5 {[%emt 0:03:06]} 48. a6 {[%emt 0:00:13]} f4 {[%emt 0:00:31]} 49. Bc5 {[%emt 0:00:04]} Ra2+ {[%emt 0:01:41]} 50. Kd3 {[%emt 0:00:46]} Ra1 {[%emt 0:04:28]} 51. a7 {[%emt 0:00:23]} Rd1+ {[%emt 0:00:33]} 52. Ke2 {[%emt 0:00:59]} Ra1 {[%emt 0:00:15]} 53. Bb7 {[%emt 0:00:11]} Kf5 {[%emt 0:02:10]} 54. a8=Q {[%emt 0:00:15]} Rxa8 {[%emt 0:00:06]} 55. Bxa8 {[%emt 0:00:03]} e4 {[%emt 0:00:51]} 56. f3 {[%emt 0:00:22]} exf3+ {[%emt 0:00:39]} 57. Kxf3 {[%emt 0:00:05] Ke4+ Kxe4} 1-0

[Event "Prague Festival Future 2020"]
[Site "Prague"]
[Date "2020.02.21"]
[Round "9.3"]
[White "Chinguun Bayaraa"]
[Black "Gurel, Ediz"]
[Result "1-0"]
[ECO "A04"]
[WhiteElo "2049"]
[BlackElo "2125"]
[Annotator "ChessBase"]
[PlyCount "157"]
[EventDate "2020.02.12"]
[EventType "tourn"]
[EventCountry "CZE"]
[SourceTitle "playchess.com"]
[Source "ChessBase"]
[SourceQuality "1"]
[TimeControl "40/5400+30:1800+30"]

1. d3 {[%emt 0:00:00]} g6 {[%emt 0:00:52]} 2. g3 {[%emt 0:00:00]} Bg7 {[%emt 0:00:16]} 3. Bg2 {[%emt 0:00:07]} e5 {[%emt 0:01:29]} 4. Nf3 {[%emt 0:00:23]} Ne7 {[%emt 0:00:43]} 5. O-O {[%emt 0:01:46]} O-O {[%emt 0:00:17]} 6. e4 {[%emt 0:00:58]} Nbc6 {[%emt 0:00:38]} 7. c3 {[%emt 0:00:51]} d6 {[%emt 0:01:17]} 8. b4 {[%emt 0:09:12]} a6 {[%emt 0:02:36]} 9. Bb2 {[%emt 0:01:15]} h6 {[%emt 0:04:14]} 10. Nbd2 {[%emt 0:01:59]} f5 {[%emt 0:02:47]} 11. Qb3+ {[%emt 0:05:15]} Kh8 {[%emt 0:01:02]} 12. h3 {[%emt 0:14:33]} Qe8 {[%emt 0:04:54]} 13. a4 {[%emt 0:03:43]} Nd8 {[%emt 0:02:49]} 14. Qc2 {[%emt 0:02:59]} Be6 {[%emt 0:09:05]} 15. Rfe1 {[%emt 0:07:28]} Qf7 {[%emt 0:07:19]} 16. c4 {[%emt 0:07:25]} fxe4 {[%emt 0:04:16]} 17. dxe4 {[%emt 0:01:01]} a5 {[%emt 0:01:29]} 18. b5 {[%emt 0:01:53]} b6 {[%emt 0:00:54]} 19. Rac1 {[%emt 0:02:44]} g5 {[%emt 0:05:07]} 20. Nf1 {[%emt 0:08:12]} Qh5 {[%emt 0:06:34]} 21. g4 {[%emt 0:07:03]} Qf7 {[%emt 0:00:13]} 22. Ng3 {[%emt 0:00:19]} Ng6 {[%emt 0:00:25]} 23. Nf5 {[%emt 0:00:52]} Nf4 {[%emt 0:00:33]} 24. Re3 {[%emt 0:01:49]} Qg6 {[%emt 0:03:25]} 25. Ne1 {[%emt 0:07:53]} h5 {[%emt 0:05:46]} 26. Nd3 {[%emt 0:00:39]} Nf7 {[%emt 0:02:59]} 27. f3 {[%emt 0:05:21]} Bf6 {[%emt 0:01:57]} 28. Kf2 {[%emt 0:02:23]} Nh6 {[%emt 0:03:33]} 29. Rg1 {[%emt 0:01:18]} Bd7 {[%emt 0:01:43]} 30. Bf1 {[%emt 0:01:30]} Nxf5 {[%emt 0:01:05]} 31. exf5 {[%emt 0:00:56]} Qh6 {[%emt 0:01:15]} 32. Nxf4 {[%emt 0:00:25]} gxf4 {[%emt 0:00:06]} 33. Ra3 {[%emt 0:01:03]} Rae8 {[%emt 0:05:00]} 34. Bd3 {[%emt 0:00:51]} Rg8 {[%emt 0:02:15]} 35. Be4 {[%emt 0:00:20]} hxg4 {[%emt 0:04:41]} 36. hxg4 {[%emt 0:01:28]} Kg7 {[%emt 0:00:59]} 37. Kf1 {[%emt 0:00:45]} Qg5 {[%emt 0:00:38]} 38. Ra1 {[%emt 0:01:02]} Rh8 {[%emt 0:00:30]} 39. Re1 {[%emt 0:00:35]} Rh3 {[%emt 0:01:04]} 40. Re2 {[%emt 0:00:00]} Reh8 {[%emt 0:00:00]} 41. Reg2 {[%emt 0:01:13]} Be8 {[%emt 0:04:16]} 42. Bc3 {[%emt 0:02:01]} Bf7 {[%emt 0:01:33]} 43. Be1 {[%emt 0:00:42]} Kf8 {[%emt 0:05:01]} 44. Ke2 {[%emt 0:10:04]} Rh1 {[%emt 0:08:13]} 45. Kf1 {[%emt 0:04:46]} R1h3 {[%emt 0:00:24]} 46. Qd3 {[%emt 0:01:32]} Rh1 {[%emt 0:04:16]} 47. Bd5 {[%emt 0:02:05]} Rxg1+ {[%emt 0:03:08]} 48. Rxg1 {[%emt 0:00:52]} Be8 {[%emt 0:00:30]} 49. Qe2 {[%emt 0:00:41]} Bf7 {[%emt 0:03:11]} 50. Bxf7 {[%emt 0:02:12]} Kxf7 {[%emt 0:00:02]} 51. Qd2 {[%emt 0:00:51]} Re8 {[%emt 0:06:15]} 52. Qd5+ {[%emt 0:00:34]} Kf8 {[%emt 0:00:08]} 53. Qe4 {[%emt 0:03:52]} Kf7 {[%emt 0:01:50]} 54. Rh1 {[%emt 0:00:34]} Qg7 {[%emt 0:00:07]} 55. Kg2 {[%emt 0:01:58]} Ke7 {[%emt 0:04:22]} 56. Bh4 {[%emt 0:01:26]} Rh8 {[%emt 0:02:12]} 57. Bxf6+ {[%emt 0:01:07]} Kxf6 {[%emt 0:00:40]} 58. Qe1 {[%emt 0:03:16]} Rxh1 {[%emt 0:04:02]} 59. Qxh1 {[%emt 0:00:05]} Qf7 {[%emt 0:01:01]} 60. Qh4+ {[%emt 0:00:19]} Kg7 {[%emt 0:00:01]} 61. Qg5+ {[%emt 0:00:30]} Kf8 {[%emt 0:00:28]} 62. Qd8+ {[%emt 0:00:09]} Kg7 {[%emt 0:00:06]} 63. Qg5+ {[%emt 0:00:03]} Kf8 {[%emt 0:00:04]} 64. f6 {[%emt 0:00:34]} Ke8 {[%emt 0:00:52]} 65. Kh3 {[%emt 0:01:17]} Qxc4 {[%emt 0:00:40]} 66. Qg6+ {[%emt 0:00:53]} Qf7 {[%emt 0:00:19]} 67. Qf5 {[%emt 0:00:03]} Qg8 {[%emt 0:02:21]} 68. g5 {[%emt 0:00:33]} Kf7 {[%emt 0:00:41]} 69. Kg4 {[%emt 0:00:37]} Qg6 {[%emt 0:00:25]} 70. Qd7+ {[%emt 0:00:13]} Kf8 {[%emt 0:00:22]} 71. Qe7+ {[%emt 0:00:31]} Kg8 {[%emt 0:00:05]} 72. Qd8+ {[%emt 0:00:03]} Kf7 {[%emt 0:00:10]} 73. Qxc7+ {[%emt 0:00:08]} Kg8 {[%emt 0:00:17]} 74. Qd8+ {[%emt 0:00:07]} Kf7 {[%emt 0:00:05]} 75. Qxd6 {[%emt 0:00:09]} Qh7 {[%emt 0:00:25]} 76. Qe7+ {[%emt 0:00:07]} Kg6 {[%emt 0:00:04]} 77. Qxh7+ {[%emt 0:00:08]} Kxh7 {[%emt 0:00:04]} 78. f7 {[%emt 0:00:17]} Kg7 {[%emt 0:00:05]} 79. g6 {[%emt 0:00:04]} 1-0